bitfinex/quotes_SOLUSD_20241127
["timestamp","ask_amount","ask_price","bid_price","bid_amount"]
[1732718181737,4.2028,237.94,237.86,12.72429485]
[1732718182124,4.2028,237.94,237.79,16.93679063]
[1732718182125,12.72429485,237.93,237.84,12.72429485]
[1732718182336,12.72429485,237.93,237.86,12.72429485]
[1732718182539,10.5735,237.95,237.88,12.72429485]
[1732718182747,6.3709,237.95,237.88,12.72429485]
[1732718183127,10.5735,237.95,237.88,12.72429485]
[1732718184453,23.29779485,237.95,237.86,12.72429485]
[1732718184746,10.5735,237.95,237.88,12.72429485]
[1732718185044,6.3709,237.95,237.88,12.72429485]
[1732718185648,23.29779485,237.95,237.88,12.72429485]
[1732718185824,12.72429485,237.91,237.82,12.72429485]
[1732718186026,12.72429485,237.89,237.8,12.72429485]
[1732718187347,4.2034,237.9,237.82,12.72429485]
[1732718188242,12.72429485,237.89,237.82,12.72429485]
[1732718188444,12.72429485,237.89,237.8,12.72429485]
[1732718189323,4.2038,237.88,237.8,12.72429485]
[1732718189539,12.72429485,237.85,237.78,12.72429485]
[1732718189949,14.7133,237.88,237.68,16.0929]
[1732718189950,12.72429485,237.83,237.68,20.3001]
[1732718190156,12.72429485,237.83,237.75,12.72429485]
[1732718190648,12.72429485,237.79,237.64,4.2078]
[1732718190861,12.72429485,237.77,237.64,4.2078]
[1732718191145,12.72429485,237.77,237.69,12.72429485]
[1732718191351,12.72429485,237.75,237.67,12.72429485]
[1732718191530,12.72429485,237.73,237.57,4.2092]
[1732718191730,12.72429485,237.77,237.69,12.72429485]
[1732718192139,5.0,237.65,237.52,6.2884]
[1732718192348,15.5018,237.73,237.52,6.2884]
[1732718192349,5.0,237.59,237.52,6.2884]
[1732718192549,5.0,237.59,237.57,12.72429485]
[1732718192943,5.0,237.59,237.55,12.72429485]
[1732718193138,5.0,237.59,237.5,12.72429485]
[1732718193441,5.0,237.59,237.5,4.2104]
[1732718193655,5.0,237.61,237.53,12.72429485]
[1732718193828,5.0,237.61,237.57,12.72429485]
[1732718194024,5.0,237.61,237.51,0.83972135]
[1732718194025,5.0,237.61,237.55,12.72429485]
[1732718194247,5.0,237.56,237.47,4.2109]
[1732718194560,13.56365052,237.6,237.53,20.42662363]
[1732718194561,5.0,237.59,237.53,20.42662363]
[1732718194955,5.0,237.59,237.51,20.42662363]
[1732718195158,5.0,237.57,237.51,20.42662363]
[1732718196156,5.0,237.55,237.51,20.42662363]
[1732718196355,5.0,237.55,237.49,24.63722363]
[1732718196742,5.0,237.54,237.49,24.63722363]
[1732718196937,5.0,237.51,237.45,20.42662363]
[1732718197152,5.0,237.51,237.43,20.42662363]
[1732718197458,5.0,237.51,237.45,24.63792363]
[1732718197766,5.0,237.47,237.39,24.63902363]
[1732718198058,5.0,237.45,237.37,20.42662363]
[1732718198262,5.0,237.44,237.37,20.42662363]
[1732718198435,21.2659793,237.46,237.37,20.42662363]
[1732718198436,5.0,237.42,237.37,20.42662363]
[1732718198939,5.0,237.44,237.37,20.42662363]
[1732718199254,5.0,237.44,237.35,4.213]
[1732718199255,5.0,237.42,237.35,24.63962363]
[1732718199634,5.0,237.39,237.33,20.42662363]
[1732718200160,5.0,237.39,237.35,20.42662363]
[1732718200466,5.0,237.44,237.37,20.42662363]
[1732718200639,5.0,237.44,237.43,20.42662363]
[1732718200832,5.0,237.46,237.43,20.42662363]
[1732718201030,5.0,237.46,237.45,20.42662363]
[1732718201757,5.0,237.42,237.39,20.42662363]
[1732718202131,5.0,237.4,237.39,20.42662363]
[1732718202754,5.0,237.4,237.37,20.42662363]
[1732718203240,5.0,237.38,237.37,20.42662363]
[1732718204046,5.0,237.43,237.37,20.42662363]
[1732718204354,0.83935567,237.45,237.43,20.42662363]
[1732718204355,5.0,237.45,237.43,20.42662363]
[1732718205058,5.0,237.47,237.43,20.42662363]
[1732718205262,21.2659793,237.52,237.37,5.05294566]
[1732718205263,5.0,237.45,237.37,5.05294566]
[1732718205753,5.0,237.48,237.37,5.05294566]
[1732718206539,0.83935567,237.52,237.37,5.05294566]
[1732718206540,5.0,237.52,237.47,20.42662363]
[1732718206747,5.0,237.54,237.51,20.42662363]
[1732718207058,5.0,237.54,237.53,20.42662363]
[1732718208064,5.0,237.54,237.51,20.42662363]
[1732718208238,5.0,237.54,237.53,20.42662363]
[1732718208434,5.0,237.56,237.53,20.42662363]
[1732718208639,5.0,237.5,237.49,20.42662363]
[1732718209956,5.0,237.52,237.49,20.42662363]
[1732718210162,5.0,237.49,237.43,4.2116]
[1732718210341,5.0,237.49,237.48,20.42662363]
[1732718212159,5.0,237.47,237.44,20.42662363]
[1732718212364,5.0,237.45,237.42,20.42662363]
[1732718212543,5.0,237.45,237.34,7.01722666]
[1732718212544,5.0,237.45,237.4,20.42662363]
[1732718212737,5.0,237.41,237.38,20.42662363]
[1732718213143,5.0,237.44,237.4,20.42662363]
[1732718213341,0.83935567,237.49,237.36,20.42662363]
[1732718213342,5.0,237.46,237.43,20.42662363]
[1732718213560,5.0,237.55,237.46,4.2112]
[1732718213762,5.0,237.5,237.43,0.8401444]
[1732718214146,5.0,237.5,237.41,7.15455579]
[1732718214565,5.0,237.54,237.43,4.2117]
[1732718214747,5.0,237.53,237.43,5.05167027]
[1732718215064,5.0,237.5,237.43,5.05167027]
[1732718215247,5.0,237.53,237.43,5.05167027]
[1732718215448,5.0,237.53,237.52,20.42662363]
[1732718215657,5.0,237.57,237.52,20.42662363]
[1732718215865,5.04745567,237.64,237.46,5.05091264]
[1732718215866,5.0,237.61,237.46,5.05091264]
[1732718216067,5.0,237.63,237.48,5.0]
[1732718216270,5.0,237.61,237.49,0.8395348]
[1732718216563,5.0,237.66,237.5,5.0]
[1732718216763,5.0,237.66,237.51,0.83947435]
[1732718216971,5.0,237.66,237.62,20.42662363]
[1732718217266,0.83935567,237.7,237.62,20.42662363]
[1732718217267,5.0,237.65,237.62,20.42662363]
[1732718217467,5.0,237.65,237.64,20.42662363]
[1732718218551,5.0,237.67,237.64,20.42662363]
[1732718218761,5.0,237.67,237.66,20.42662363]
[1732718219151,5.0,237.67,237.63,20.42662363]
[1732718219345,5.0,237.65,237.63,20.42662363]
[1732718220460,5.0,237.67,237.63,20.42662363]
[1732718220666,5.0,237.65,237.63,20.42662363]
[1732718220882,5.0,237.65,237.61,20.42662363]
[1732718221165,5.0,237.7,237.63,20.42662363]
[1732718221347,5.0,237.73,237.69,20.42662363]
[1732718221755,5.83935567,237.75,237.71,20.42662363]
[1732718221966,5.0,237.72,237.71,20.42662363]
[1732718222168,5.83935567,237.75,237.69,20.42662363]
[1732718222477,5.0,237.68,237.67,20.42662363]
[1732718222969,5.0,237.68,237.65,20.42662363]
[1732718223476,5.0,237.65,237.61,20.42662363]
[1732718224373,5.0,237.72,237.63,20.42662363]
[1732718224590,5.0,237.75,237.7,20.42662363]
[1732718224784,5.0,237.77,237.72,20.42662363]
[1732718224952,5.83935567,237.77,237.72,20.42662363]
[1732718225153,5.0,237.74,237.72,20.42662363]
[1732718225372,5.0,237.78,237.72,20.42662363]
[1732718225578,5.0,237.73,237.72,20.42662363]
[1732718225767,0.83935567,237.78,237.72,20.42662363]
[1732718225976,5.0,237.73,237.7,20.42662363]
[1732718226155,5.0,237.71,237.68,20.42662363]
[1732718226475,5.0,237.71,237.66,20.42662363]
[1732718227476,5.0,237.76,237.7,20.42662363]
[1732718227779,5.0,237.76,237.73,20.42662363]
[1732718228079,5.0,237.74,237.71,20.42662363]
[1732718228578,5.0,237.76,237.73,20.42662363]
[1732718228763,5.0,237.76,237.71,20.42662363]
[1732718228963,5.0,237.78,237.73,20.42662363]
[1732718229181,21.2659793,237.81,237.69,4.207]
[1732718229182,5.0,237.81,237.77,20.42662363]
[1732718229482,5.0,237.83,237.79,20.42662363]
[1732718229654,5.0,237.76,237.71,20.42662363]
[1732718229854,5.0,237.76,237.69,20.42662363]
[1732718230057,5.0,237.74,237.67,20.42662363]
[1732718231473,5.0,237.74,237.67,24.63402363]
[1732718231786,5.0,237.74,237.67,20.42662363]
[1732718232274,5.0,237.74,237.69,20.42662363]
[1732718232975,5.0,237.78,237.73,20.42662363]
[1732718233362,5.0,237.8,237.73,20.42662363]
[1732718233558,5.0,237.78,237.75,20.42662363]
[1732718233964,5.0,237.79,237.75,20.42662363]
[1732718234374,5.0,237.77,237.73,20.42662363]
[1732718234681,5.0,237.81,237.75,20.42662363]
[1732718234978,5.0,237.83,237.77,20.42662363]
[1732718235189,5.0,237.8,237.76,20.42662363]
[1732718235479,5.0,237.83,237.76,20.42662363]
[1732718235676,5.0,237.83,237.8,20.42662363]
[1732718235986,5.0,237.87,237.82,20.42662363]
[1732718236279,5.0,237.91,237.85,20.42662363]
[1732718236470,20.42662363,237.92,237.83,24.63112363]
[1732718236471,5.0,237.86,237.83,24.63112363]
[1732718237177,5.0,237.86,237.81,20.42662363]
[1732718237363,26.2659793,237.9,237.81,20.42662363]
[1732718237680,5.0,237.88,237.81,20.42662363]
[1732718237858,5.0,237.85,237.81,20.42662363]
[1732718238473,5.0,237.85,237.78,4.2055]
[1732718238685,20.42662363,237.86,237.78,4.2055]
[1732718238894,5.0,237.84,237.77,20.42662363]
[1732718239176,20.42662363,237.86,237.77,24.63232363]
[1732718239378,5.0,237.84,237.77,24.63232363]
[1732718240380,5.0,237.87,237.79,20.42662363]
[1732718240564,5.0,237.86,237.79,20.42662363]
[1732718240765,5.0,237.86,237.81,20.42662363]
[1732718240965,5.0,237.84,237.81,20.42662363]
[1732718241468,5.0,237.84,237.79,20.42662363]
[1732718242068,5.0,237.84,237.77,24.63232363]
[1732718242794,5.0,237.84,237.79,20.42662363]
[1732718243162,5.0,237.86,237.81,20.42662363]
[1732718243495,5.0,237.9,237.85,20.42662363]
[1732718244074,5.0,237.94,237.89,20.42662363]
[1732718244276,5.0,237.96,237.89,20.42662363]
[1732718244589,25.42662363,237.98,237.9,4.2034]
[1732718244791,25.42662363,237.96,237.89,24.63022363]
[1732718244973,5.0,237.93,237.89,24.63022363]
[1732718245167,20.42662363,237.96,237.89,20.42662363]
[1732718245168,5.0,237.92,237.89,20.42662363]
[1732718245485,5.0,237.93,237.89,24.63012363]
[1732718245782,5.0,237.92,237.87,24.63042363]
[1732718246165,25.42662363,237.94,237.85,24.63072363]
[1732718246389,5.0,237.88,237.83,20.42662363]
[1732718246598,5.0,237.9,237.85,20.42662363]
[1732718247174,20.42662363,237.94,237.84,5.04301732]
[1732718247175,5.0,237.94,237.89,20.42662363]
[1732718248497,5.0,237.92,237.89,20.42662363]
[1732718248991,5.0,237.95,237.89,24.63022363]
[1732718249190,5.0,237.92,237.87,20.42662363]
[1732718251282,5.0,237.92,237.88,4.2038]
[1732718251478,5.0,237.92,237.86,4.2039]
[1732718251695,20.42662363,237.94,237.85,24.63082363]
[1732718251896,5.0,237.92,237.85,24.63082363]
[1732718252095,20.42662363,237.9,237.81,20.42662363]
[1732718252396,5.0,237.87,237.81,20.42662363]
[1732718252569,5.0,237.89,237.81,24.63162363]
[1732718252772,5.0,237.89,237.83,20.42662363]
[1732718253389,5.0,237.87,237.83,20.42662363]
[1732718253600,5.0,237.87,237.83,24.63122363]
[1732718254404,5.0,237.89,237.83,24.63122363]
[1732718254587,20.42662363,237.92,237.87,20.42662363]
[1732718254588,5.0,237.92,237.87,20.42662363]
[1732718254792,25.42662363,237.94,237.87,20.42662363]
[1732718254987,5.0,237.9,237.83,24.63122363]
[1732718255699,5.0,237.9,237.85,20.42662363]
[1732718256008,5.0,237.93,237.86,4.2041]
[1732718256205,5.0,237.93,237.87,20.42662363]
[1732718256701,5.0,237.9,237.86,4.2041]
[1732718256908,5.0,237.93,237.86,4.2041]
[1732718257085,5.0,237.9,237.84,4.2044]
[1732718257778,5.0,237.9,237.83,20.42662363]
[1732718258094,25.42662363,237.92,237.83,24.63122363]
[1732718258296,5.0,237.95,237.87,20.42662363]
[1732718259004,25.42662363,237.96,237.87,20.42662363]
[1732718259191,5.0,237.94,237.87,20.42662363]
[1732718259894,5.0,237.94,237.88,4.2038]
[1732718260301,5.0,237.96,237.89,20.42662363]
[1732718260707,20.42662363,237.98,237.89,20.42662363]
[1732718260884,5.0,237.95,237.89,20.42662363]
[1732718261595,25.42662363,237.98,237.9,4.2034]
[1732718262111,25.42662363,238.03,237.93,20.42662363]
[1732718264912,20.42662363,238.03,237.95,24.62892363]
[1732718265283,5.0,238.02,237.95,24.62892363]
[1732718265484,20.42662363,238.01,237.93,20.42662363]
[1732718265690,20.42662363,237.99,237.91,24.62982363]
[1732718266094,5.0,238.0,237.91,24.62982363]
[1732718266413,5.0,238.0,237.95,20.42662363]
[1732718266709,20.42662363,238.03,237.93,20.42662363]
[1732718267014,5.0,238.0,237.93,20.42662363]
[1732718267388,5.0,237.99,237.93,20.42662363]
[1732718267589,5.0,237.99,237.94,4.2027]
[1732718268012,5.0,237.99,237.93,24.62952363]
[1732718268408,25.42662363,237.99,237.91,24.62982363]
[1732718268609,5.0,237.97,237.91,4.2032]
[1732718268989,12.72345527,237.99,237.91,4.2032]
[1732718268990,17.72345527,237.99,237.91,4.2032]
[1732718269210,17.72345527,237.99,237.92,12.72345527]
[1732718269696,17.72345527,237.99,237.92,16.92645527]
[1732718269889,5.0,238.01,237.94,12.72345527]
[1732718270102,5.0,238.03,237.96,12.72345527]
[1732718270291,17.72345527,238.05,237.96,12.72345527]
[1732718270486,5.0,237.99,237.96,12.72345527]
[1732718270714,5.0,237.99,237.94,12.72345527]
[1732718271497,12.72345527,238.03,237.95,4.2025]
[1732718271708,5.0,237.99,237.95,4.2025]
[1732718271914,5.0,237.99,237.94,16.92615527]
[1732718272142,5.0,237.99,237.92,12.72345527]
[1732718273214,5.0,237.99,237.92,16.92645527]
[1732718273402,5.0,237.99,237.92,4.203]
[1732718273403,17.72345527,237.99,237.92,4.203]
[1732718273910,17.72345527,237.99,237.91,4.2032]
[1732718274116,5.0,237.96,237.91,4.2032]
[1732718274287,5.0,237.96,237.9,27.95845527]
[1732718274633,5.0,237.96,237.9,16.92685527]
[1732718274804,5.0,237.94,237.88,12.72345527]
[1732718275005,5.0,237.94,237.86,12.72345527]
[1732718275409,5.0,237.94,237.87,4.2039]
[1732718276109,12.72345527,237.93,237.85,4.2042]
[1732718276320,5.0,237.91,237.85,12.72345527]
[1732718276699,5.0,237.93,237.87,12.72345527]
[1732718277003,12.72345527,237.95,237.87,12.72345527]
[1732718277004,5.0,237.91,237.87,12.72345527]
[1732718277198,5.0,237.91,237.84,31.0563]
[1732718277199,5.0,237.96,237.89,12.72345527]
[1732718277406,5e-05,238.06,237.84,43.77975527]
[1732718277407,1.97080949,238.11,237.86,4.2041]
[1732718277622,35.03480883,238.36,237.95,12.72345527]
[1732718277920,19.96148272,238.36,238.28,5.0]
[1732718278169,1.90994132,238.41,238.32,5.0]
[1732718278304,72.63299585,238.54,238.48,5.0]
[1732718278305,66.02999623,238.54,238.48,5.0]
[1732718278502,0.4956571,238.57,238.56,5.0]
[1732718278708,13.20599924,238.74,238.56,45.47623522]
[1732718278709,6.60299962,238.72,238.56,45.47623522]
[1732718278928,6.60299962,238.72,238.71,0.34386771]
[1732718279427,0.4956571,238.81,238.77,0.34386771]
[1732718279922,0.4956571,238.81,238.79,0.34386771]
[1732718280299,0.4956571,238.81,238.8,20.23811761]
[1732718280623,0.4956571,238.81,238.8,70.62895836]
[1732718280817,5.71e-05,238.81,238.8,70.62895836]
[1732718280993,32.81447918,238.97,238.89,0.34386771]
[1732718281192,1.02,239.0,238.91,0.34386771]
[1732718281601,1.02,239.0,238.99,5.0]
[1732718281811,1.02,239.0,238.94,5.0]
[1732718282202,32.81447918,238.99,238.94,5.0]
[1732718282609,32.81447918,238.97,238.94,5.0]
[1732718282811,32.81447918,238.95,238.94,5.0]
[1732718283329,32.81447918,238.95,238.94,0.02861171]
[1732718283615,32.81447918,238.95,238.94,5.02861171]
[1732718284001,32.81447918,238.97,238.94,5.02861171]
[1732718284207,32.81447918,238.95,238.94,5.02861171]
[1732718285000,32.81447918,238.95,238.94,5.37247942]
[1732718285204,32.81447918,238.98,238.94,5.37247942]
[1732718285404,32.81447918,238.98,238.97,5.34386771]
[1732718286317,32.81447918,238.98,238.97,5.0]
[1732718286497,32.81447918,238.98,238.94,0.86325748]
[1732718286498,32.81447918,238.98,238.95,5.34386771]
[1732718286699,0.1584186,238.99,238.95,5.34386771]
[1732718286700,32.81447918,238.96,238.95,5.0]
[1732718287107,32.81447918,238.96,238.95,5.34386771]
[1732718287336,32.81447918,238.98,238.97,5.34386771]
[1732718288222,32.81447918,238.98,238.97,5.0]
[1732718288619,32.81447918,238.98,238.97,5.34386771]
[1732718288802,32.81447918,238.98,238.97,5.0]
[1732718290918,1.95531638,238.98,238.97,5.0]
[1732718291116,1.95531638,238.98,238.97,5.83458015]
[1732718291507,1.95531638,238.98,238.97,5.0]
[1732718292222,1.95531638,238.98,238.95,5.0]
[1732718292425,0.1584186,238.99,238.91,5.0]
[1732718292426,65.62895836,238.96,238.91,5.0]
[1732718292734,65.62895836,238.92,238.83,5.0]
[1732718292932,32.81447918,238.84,238.83,5.0]
[1732718293240,32.81447918,238.88,238.87,5.0]
[1732718293413,4.1846,238.97,238.88,5.0]
[1732718293737,4.1855,238.92,238.81,5.0]
[1732718293941,4.1844,238.98,238.89,5.0]
[1732718294234,32.81447918,238.9,238.85,4.979991]
[1732718294438,32.81447918,238.9,238.71,9.1891]
[1732718294439,32.81447918,238.92,238.81,4.979991]
[1732718294610,32.81447918,238.82,238.81,4.979991]
[1732718294817,32.81447918,238.84,238.81,4.979991]
[1732718295207,32.81447918,238.82,238.81,4.979991]
[1732718295431,32.81447918,238.84,238.81,4.979991]
[1732718295628,32.81447918,238.84,238.83,4.979991]
[1732718295941,32.81447918,238.87,238.83,4.979991]
[1732718296117,32.81447918,238.91,238.88,4.979991]
[1732718296313,32.81447918,238.93,238.9,4.979991]
[1732718296518,32.81447918,238.91,238.87,4.979991]
[1732718296825,32.81447918,238.89,238.83,4.979991]
[1732718297154,32.81447918,238.89,238.69,5.0]
[1732718297155,32.81447918,238.85,238.82,4.979991]
[1732718297432,32.81447918,238.83,238.8,4.979991]
[1732718297938,37.00127918,238.85,238.8,4.979991]
[1732718298313,32.81447918,238.85,238.83,4.979991]
[1732718298528,0.1584186,238.89,238.83,4.979991]
[1732718298529,37.00087918,238.87,238.83,4.979991]
[1732718298743,37.00087918,238.87,238.8,4.979991]
[1732718298744,32.81447918,238.85,238.8,4.979991]
[1732718299048,32.81447918,238.85,238.83,4.979991]
[1732718299348,32.81447918,238.85,238.77,32.81447918]
[1732718299349,32.81447918,238.87,238.85,4.979991]
[1732718299742,32.81447918,238.87,238.82,4.979991]
[1732718299743,4.1865,238.86,238.82,4.979991]
[1732718299932,32.81447918,238.85,238.8,4.979991]
[1732718300131,32.81447918,238.83,238.82,4.979991]
[1732718300341,32.81447918,238.83,238.8,4.979991]
[1732718300537,32.81447918,238.85,238.82,4.979991]
[1732718301241,32.81447918,238.83,238.82,4.979991]
[1732718301548,32.81447918,238.85,238.84,4.979991]
[1732718301746,32.97289778,238.89,238.86,4.979991]
[1732718302049,32.81447918,238.87,238.86,4.979991]
[1732718302225,32.97289778,238.89,238.88,4.979991]
[1732718302429,20.20878483,238.88,238.85,4.979991]
[1732718302626,20.20878483,238.88,238.83,4.979991]
[1732718303049,20.20878483,238.88,238.78,20.55265254]
[1732718303050,20.20878483,238.86,238.84,4.979991]
[1732718303756,20.20878483,238.88,238.87,4.979991]
[1732718303933,24.39498483,238.88,238.87,4.979991]
[1732718304137,20.20878483,238.88,238.87,4.979991]
[1732718304831,0.1584186,238.89,238.87,4.979991]
[1732718305032,0.1584186,238.89,238.87,5.32385871]
[1732718305229,20.20878483,238.88,238.83,4.979991]
[1732718305455,0.1584186,238.89,238.78,0.83498036]
[1732718305456,4.3445186,238.89,238.84,4.979991]
[1732718305651,4.3445186,238.89,238.88,4.979991]
[1732718305652,0.1584186,238.89,238.88,4.979991]
[1732718305947,20.36720343,238.89,238.84,4.979991]
[1732718306169,24.55330343,238.89,238.84,4.979991]
[1732718306332,20.20878483,238.87,238.82,4.979991]
[1732718306648,20.20878483,238.87,238.81,0.34386771]
[1732718306851,20.20878483,238.87,238.84,4.979991]
[1732718307054,24.55330343,238.89,238.84,4.979991]
[1732718307233,20.20878483,238.85,238.8,4.979991]
[1732718307430,4.3445186,238.89,238.75,4.979991]
[1732718307431,20.20878483,238.82,238.75,4.979991]
[1732718307651,20.20878483,238.8,238.75,4.420791]
[1732718307936,20.20878483,238.77,238.7,4.420791]
[1732718308154,20.20878483,238.74,238.7,4.420791]
[1732718308351,20.20878483,238.74,238.73,4.420791]
[1732718308653,20.20878483,238.76,238.71,4.420791]
[1732718309235,20.20878483,238.74,238.68,4.420791]
[1732718309454,14.6571,238.79,238.71,4.420791]
[1732718309455,20.20878483,238.76,238.71,4.420791]
[1732718309685,14.6571,238.79,238.73,4.420791]
[1732718309686,20.20878483,238.78,238.73,4.420791]
[1732718309954,20.20878483,238.8,238.75,4.420791]
[1732718310258,20.20878483,238.8,238.69,20.20878483]
[1732718310259,20.20878483,238.8,238.74,0.34386771]
[1732718310637,20.20878483,238.76,238.72,4.76465871]
[1732718310933,20.20878483,238.78,238.72,0.34386771]
[1732718311134,20.20878483,238.8,238.75,4.420791]
[1732718311556,20.20878483,238.8,238.76,4.420791]
[1732718312050,20.20878483,238.8,238.74,0.34386771]
[1732718312051,20.20878483,238.84,238.8,4.420791]
[1732718312256,20.20878483,238.82,238.75,0.34386771]
[1732718312550,4.1867,238.85,238.7,4.420791]
[1732718312551,20.20878483,238.77,238.7,4.420791]
[1732718312734,20.20878483,238.75,238.74,4.420791]
[1732718312930,20.20878483,238.77,238.76,4.420791]
[1732718314253,24.39738483,238.75,238.72,4.420791]
[1732718314665,20.20878483,238.73,238.7,4.420791]
[1732718315151,20.20878483,238.71,238.7,4.420791]
[1732718315653,20.20878483,238.71,238.65,0.34386771]
[1732718315654,20.20878483,238.71,238.68,4.420791]
[1732718315857,20.20878483,238.69,238.68,4.76465871]
[1732718316039,20.20878483,238.69,238.68,4.420791]
[1732718316354,20.20878483,238.69,238.64,4.420791]
[1732718316552,20.20878483,238.69,238.67,4.76465871]
[1732718317153,20.20878483,238.69,238.67,4.420791]
[1732718317462,4.1879,238.78,238.68,4.420791]
[1732718317665,20.20878483,238.7,238.66,4.420791]
[1732718317956,20.20878483,238.7,238.66,4.76465871]
[1732718318145,20.20878483,238.7,238.66,4.420791]
[1732718318457,20.20878483,238.7,238.67,4.420791]
[1732718318660,20.20878483,238.68,238.64,4.420791]
[1732718318854,20.20878483,238.68,238.67,4.76465871]
[1732718319048,20.20878483,238.68,238.67,4.420791]
[1732718319254,20.20878483,238.68,238.67,4.76465871]
[1732718319557,20.20878483,238.68,238.65,4.420791]
[1732718319948,20.20878483,238.68,238.67,4.420791]
[1732718320142,20.20878483,238.68,238.63,4.420791]
[1732718320456,20.20878483,238.66,238.65,4.420791]
[1732718321255,20.20878483,238.66,238.56,20.20878483]
[1732718321256,20.20878483,238.66,238.62,4.420791]
[1732718322750,20.20878483,238.64,238.62,4.420791]
[1732718323863,20.20878483,238.66,238.62,4.420791]
[1732718324165,20.20878483,238.66,238.62,4.76465871]
[1732718324457,20.20878483,238.64,238.62,4.420791]
[1732718324960,20.20878483,238.64,238.62,4.76465871]
[1732718325139,20.20878483,238.64,238.62,4.420791]
[1732718326866,20.20878483,238.68,238.64,4.420791]
[1732718327156,20.20878483,238.66,238.65,4.76465871]
[1732718327659,20.20878483,238.66,238.63,0.34386771]
[1732718327860,4.1877,238.79,238.68,0.34386771]
[1732718328065,20.20878483,238.72,238.69,0.34386771]
[1732718328245,20.20878483,238.7,238.67,4.420791]
[1732718328452,20.20878483,238.68,238.65,4.420791]
[1732718328653,20.20878483,238.68,238.66,0.34386771]
[1732718328862,20.20878483,238.68,238.65,4.420791]
[1732718329170,20.20878483,238.66,238.63,4.76465871]
[1732718329557,20.20878483,238.64,238.63,4.420791]
[1732718329758,20.20878483,238.66,238.65,4.76465871]
[1732718329971,20.20878483,238.66,238.65,4.420791]
[1732718330147,20.20878483,238.66,238.65,4.76465871]
[1732718330849,20.20878483,238.66,238.65,0.34386771]
[1732718331047,20.20878483,238.66,238.63,4.420791]
[1732718331249,20.20878483,238.64,238.63,4.420791]
[1732718331555,20.20878483,238.66,238.65,4.420791]
[1732718332471,20.20878483,238.66,238.63,4.420791]
[1732718332680,20.20878483,238.68,238.67,0.34386771]
[1732718332876,20.20878483,238.72,238.69,4.76465871]
[1732718333171,20.20878483,238.72,238.71,4.76465871]
[1732718335275,20.20878483,238.72,238.69,4.420791]
[1732718335450,4.1877,238.79,238.71,4.76465871]
[1732718335962,4.1877,238.79,238.71,0.34386771]
[1732718336152,4.1877,238.79,238.71,4.76465871]
[1732718336348,20.20878483,238.72,238.71,4.76465871]
[1732718338575,2.52736813,238.87,238.71,4.76465871]
[1732718338576,20.20878483,238.74,238.73,4.420791]
[1732718338752,20.20878483,238.76,238.75,4.76465871]
[1732718339773,20.20878483,238.76,238.73,4.420791]
[1732718339972,4.1862,238.88,238.78,4.76465871]
[1732718340484,4.1862,238.88,238.78,0.34386771]
[1732718340776,4.1862,238.88,238.79,4.420791]
[1732718340964,40.41756966,238.8,238.79,4.420791]
[1732718341157,20.20878483,238.8,238.79,4.76465871]
[1732718342067,20.20878483,238.82,238.79,4.76465871]
[1732718342383,12.63482346,238.82,238.81,0.34386771]
[1732718342880,12.63482346,238.86,238.85,4.76465871]
[1732718343085,12.63482346,238.88,238.87,4.76465871]
[1732718343249,12.76060746,238.88,238.87,4.76465871]
[1732718344167,0.125784,238.88,238.87,4.420791]
[1732718344481,20.33839205,238.88,238.87,4.420791]
[1732718344853,20.33839205,238.88,238.87,4.76465871]
[1732718346977,20.33839205,238.88,238.87,4.420791]
[1732718347978,24.52469205,238.88,238.83,4.420791]
[1732718348178,0.125784,238.88,238.87,4.76465871]
[1732718348354,0.125784,238.88,238.87,4.420791]
[1732718348782,0.125784,238.88,238.85,4.420791]
[1732718349168,0.125784,238.88,238.87,4.420791]
[1732718349486,20.33839205,238.88,238.87,4.420791]
[1732718350274,20.33839205,238.88,238.85,0.34386771]
[1732718350477,20.33839205,238.88,238.84,4.420791]
[1732718350478,0.125784,238.88,238.83,0.34386771]
[1732718350954,20.21260805,238.84,238.83,0.34386771]
[1732718352281,20.21260805,238.84,238.82,4.420791]
[1732718352878,20.21260805,238.84,238.81,0.34386771]